bitfinex/quotes_SOLUSD_20220227
["timestamp","ask_amount","ask_price","bid_price","bid_amount"]
[1645977942072,0.25,90.94,90.841,2.74678921]
[1645977942273,0.25,90.94,90.84,13.21]
[1645977942274,0.25,90.94,90.85,16.5114]
[1645977942573,112.39678921,90.94,90.851,29.01363239]
[1645977942772,0.25,90.94,90.851,29.01363239]
[1645977945977,2.74678921,90.939,90.851,29.01363239]
[1645977946178,0.25,90.938,90.851,29.01363239]
[1645977946576,2.74678921,90.937,90.851,29.01363239]
[1645977946776,0.25,90.936,90.851,29.01363239]
[1645977949082,0.25,90.937,90.851,29.01363239]
[1645977953386,0.25,90.937,90.852,0.25]
[1645977953587,0.25,90.937,90.852,2.99678921]
[1645977953788,0.25,90.939,90.852,2.99678921]
[1645977953989,0.25,90.939,90.853,2.74678921]
[1645977954587,0.25,90.943,90.86,16.5104]
[1645977954788,0.25,90.962,90.86,16.5104]
[1645977954987,0.25,90.969,90.86,16.5104]
[1645977955190,2.74678921,90.942,90.854,22.6107]
[1645977955389,0.25,90.941,90.854,22.6107]
[1645977955589,109.4,90.939,90.854,22.6107]
[1645977955793,2.57272885,90.938,90.854,22.6107]
[1645977956592,2.4203904,90.935,90.854,22.6107]
[1645977956792,0.25,90.934,90.854,22.6107]
[1645977957999,2.74678921,90.933,90.854,22.6107]
[1645977958195,0.25,90.932,90.854,22.6107]
[1645977960399,0.25,90.934,90.854,22.6107]
[1645977962099,2.74678921,90.933,90.854,22.6107]
[1645977962298,0.25,90.932,90.854,22.6107]
[1645977963499,0.25,90.934,90.854,22.6107]
[1645977966217,2.4203904,90.935,90.854,22.6107]
[1645977968923,0.25,90.934,90.854,22.6107]
[1645977971224,0.25,90.934,90.851,29.01363239]
[1645977971526,112.14678921,90.933,90.851,29.01363239]
[1645977971824,2.15718627,90.928,90.851,29.01363239]
[1645977972025,0.25,90.927,90.851,29.01363239]
[1645977972223,109.4,90.926,90.851,29.01363239]
[1645977972423,2.41728947,90.925,90.851,29.01363239]
[1645977972626,109.4,90.909,90.832,0.90554938]
[1645977972824,2.59406097,90.908,90.832,0.90554938]
[1645977973429,109.4,90.906,90.832,0.90554938]
[1645977973627,0.25,90.905,90.833,32.83381333]
[1645977973827,2.14678533,90.905,90.833,32.83381333]
[1645977984544,2.14678533,90.905,90.832,0.90554938]
[1645977984745,2.74678921,90.904,90.832,0.90554938]
[1645977984945,109.4,90.889,90.832,0.90554938]
[1645977985245,2.34782517,90.886,90.832,0.90554938]
[1645977985445,0.25,90.885,90.832,0.90554938]
[1645977985646,2.36703745,90.883,90.832,0.90554938]
[1645977985845,24.1928,90.885,90.832,0.90554938]
[1645977985846,2.3597572,90.879,90.832,0.90554938]
[1645977986046,0.25,90.878,90.832,0.90554938]
[1645977987150,109.4,90.876,90.76,55.0823]
[1645977987349,109.4,90.874,90.761,24.8891]
[1645977987552,109.4,90.872,90.747,24.2011]
[1645977987755,2.56015257,90.858,90.747,24.2011]
[1645977987956,109.4,90.856,90.747,24.2011]
[1645977988149,109.4,90.854,90.747,24.2011]
[1645977988349,109.4,90.839,90.747,24.2011]
[1645977988553,109.4,90.829,90.735,31.49838826]
[1645977988750,109.4,90.827,90.735,31.49838826]
[1645977988948,7.08220541,90.826,90.735,31.49838826]
[1645977989152,2.67620541,90.826,90.736,2.74678921]
[1645977989549,2.67620541,90.826,90.74,16.5319]
[1645977990052,2.67620541,90.826,90.741,2.74678921]
[1645977991351,2.42620541,90.826,90.742,0.25]
[1645977991551,2.23522534,90.853,90.75,16.5299]
[1645977991753,2.23522534,90.853,90.751,26.17482997]
[1645977991951,6.70262898,90.873,90.751,26.17482997]
[1645977992150,2.29762898,90.873,90.751,28.92161918]
[1645977992350,258.61262924,90.847,90.752,15.31032695]
[1645977992551,2.15022144,90.846,90.753,0.25]
[1645977992752,2.15022144,90.846,90.753,2.99678921]
[1645977993152,2.15022144,90.846,90.754,2.74678921]
[1645977993350,0.25,90.845,90.755,0.25]
[1645977993550,0.25,90.845,90.781,36.43471373]
[1645977994153,0.25,90.845,90.782,2.74678921]
[1645977997557,0.25,90.845,90.781,36.43471373]
[1645977998157,0.25,90.845,90.764,2.74678921]
[1645977998360,111.876324,90.844,90.761,23.495]
[1645977998581,2.3598462,90.843,90.761,23.495]
[1645977999485,2.3598462,90.843,90.76,16.5283]
[1645977999682,111.47904726,90.839,90.743,22.9861]
[1645977999882,109.4,90.837,90.743,22.9861]
[1645978000082,2.22464344,90.836,90.743,22.9861]
[1645978000282,2.22464344,90.836,90.744,29.99274711]
[1645978000482,2.74678921,90.835,90.744,29.99274711]
[1645978000684,109.4,90.829,90.744,2.74678921]
[1645978000882,2.29503467,90.828,90.743,22.9861]
[1645978001083,5.04182388,90.828,90.743,22.9861]
[1645978001282,5.04182388,90.828,90.74,32.8447]
[1645978001283,2.74678921,90.827,90.74,32.8447]
[1645978001483,2.74678921,90.827,90.74,16.313]
[1645978001682,4.406,90.826,90.74,16.313]
[1645978001882,4.406,90.826,90.728,43.15351121]
[1645978002185,0.25,90.825,90.728,26.65761121]
[1645978002389,4.406,90.824,90.728,26.65761121]
[1645978002582,109.4,90.809,90.728,26.65761121]
[1645978002782,109.4,90.807,90.728,26.65761121]
[1645978002982,2.52993488,90.806,90.728,26.65761121]
[1645978003383,111.75887164,90.798,90.72,16.5357]
[1645978003583,111.75887164,90.798,90.706,22.8124]
[1645978003584,2.32293144,90.795,90.706,22.8124]
[1645978003783,2.32293144,90.795,90.707,6.0]
[1645978003985,0.25,90.794,90.707,6.0]
[1645978004184,0.25,90.794,90.706,22.8124]
[1645978004185,0.25,90.794,90.681,15.31032695]
[1645978004386,1.95154853,90.788,90.682,31.73219559]
[1645978004587,4.408,90.787,90.682,31.73219559]
[1645978004887,4.658,90.787,90.682,31.73219559]
[1645978005085,4.658,90.787,90.69,16.541]
[1645978005286,23.7193,90.786,90.69,16.541]
[1645978005484,2.44543975,90.785,90.691,2.74678921]
[1645978005685,2.44543975,90.785,90.692,0.25]
[1645978005884,2.44543975,90.785,90.691,2.74678921]
[1645978006085,2.44543975,90.785,90.693,2.74678921]
[1645978007488,2.44543975,90.785,90.71,16.5376]
[1645978007687,2.19543975,90.785,90.711,33.42435266]
[1645978009389,0.25,90.784,90.711,33.42435266]
[1645978009789,2.3362266,90.784,90.711,33.42435266]
[1645978010388,2.3362266,90.784,90.69,16.5408]
[1645978010792,2.3362266,90.784,90.69,19.28758921]
[1645978010992,2.3362266,90.784,90.69,2.74678921]
[1645978010993,7.1966595,90.783,90.69,2.74678921]
[1645978011294,2.52763091,90.778,90.668,2.74678921]
[1645978011493,4.409,90.777,90.669,35.1346611]
[1645978011694,109.65,90.776,90.669,35.1346611]
[1645978011893,109.4,90.774,90.669,35.1346611]
[1645978012092,15.86,90.76,90.67,16.5449]
[1645978012292,15.86,90.77,90.67,16.5449]
[1645978012495,2.35364811,90.768,90.67,19.29168921]
[1645978012692,2.35364811,90.768,90.671,2.74678921]
[1645978013091,2.18507729,90.731,90.671,2.74678921]
[1645978013495,0.25,90.73,90.671,2.74678921]
[1645978013892,0.25,90.73,90.67,16.5449]
[1645978014291,0.25,90.731,90.67,16.5449]
[1645978014892,2.74704621,90.731,90.67,16.5449]
[1645978015292,0.25,90.731,90.68,16.5417]
[1645978015793,0.25,90.731,90.681,2.74678921]
[1645978015992,0.25,90.731,90.669,35.1346611]
[1645978016393,2.6903901,90.731,90.67,2.74678921]
[1645978016794,2.6903901,90.731,90.669,35.1346611]
[1645978017697,2.6903901,90.731,90.67,16.5446]
[1645978019701,112.0903901,90.731,90.67,16.5446]
[1645978019898,2.38741273,90.73,90.669,35.1346611]
[1645978020099,109.65,90.729,90.669,35.1346611]
[1645978020308,2.09645015,90.728,90.669,35.1346611]
[1645978020602,0.25,90.727,90.669,35.1346611]
[1645978021199,0.25,90.727,90.67,16.5451]
[1645978021403,0.25,90.727,90.67,19.29188921]
[1645978021605,0.25,90.731,90.67,19.29188921]
[1645978021801,0.25,90.731,90.671,2.74678921]
[1645978022002,0.25,90.731,90.671,9.45678921]
[1645978022201,0.25,90.731,90.671,6.71]
[1645978022400,0.25,90.731,90.669,35.1346611]
[1645978023611,0.25,90.731,90.68,16.5403]
[1645978024205,2.55981216,90.754,90.68,16.5403]
[1645978024403,2.49232793,90.758,90.68,16.5403]
[1645978024703,2.49232793,90.758,90.669,35.1346611]
[1645978024704,109.4,90.741,90.669,35.1346611]
[1645978024905,15.86,90.73,90.669,35.1346611]
[1645978025104,2.27197344,90.729,90.669,35.1346611]
[1645978025504,0.25,90.728,90.669,35.1346611]
[1645978026305,109.4,90.727,90.64,16.5498]
[1645978026512,2.30865466,90.726,90.64,16.5498]
[1645978026712,113.81,90.725,90.621,2.74678921]
[1645978027008,109.4,90.709,90.62,40.2859]
[1645978027216,1.89676746,90.706,90.621,36.46697747]
[1645978027416,4.66,90.705,90.621,36.46697747]
[1645978027810,109.4,90.699,90.62,16.2798]
[1645978028009,109.4,90.697,90.62,16.2798]
[1645978028210,2.59448552,90.696,90.62,16.2798]
[1645978028410,2.13339515,90.693,90.62,16.2798]
[1645978028616,125.26,90.69,90.62,16.2798]
[1645978028811,1.92976676,90.689,90.62,16.2798]
[1645978029016,4.662,90.688,90.62,16.2798]
[1645978029413,109.4,90.687,90.62,16.2798]
[1645978029610,109.4,90.687,90.604,0.55163875]
[1645978029611,2.29316635,90.686,90.604,0.55163875]
[1645978029809,111.33998792,90.684,90.604,0.55163875]
[1645978030010,125.26,90.67,90.604,0.55163875]
[1645978030215,1.94998888,90.668,90.604,0.55163875]
[1645978030416,0.25,90.667,90.604,0.55163875]
[1645978031313,109.4,90.665,90.604,0.55163875]
[1645978031512,109.4,90.659,90.604,0.55163875]
[1645978031712,125.26,90.65,90.604,0.55163875]
[1645978032012,2.42704641,90.649,90.604,0.55163875]
[1645978032212,2.42704641,90.649,90.577,16.6722]
[1645978032213,109.4,90.648,90.577,16.6722]
[1645978032411,109.4,90.646,90.577,16.6722]
[1645978032612,109.4,90.639,90.577,16.6722]
[1645978032813,109.4,90.629,90.54,16.5679]
[1645978033018,109.4,90.627,90.54,16.5679]
[1645978033213,2.34408695,90.626,90.549,28.74175654]
[1645978033413,109.4,90.625,90.549,28.74175654]
[1645978033613,125.26,90.61,90.549,28.74175654]
[1645978033813,2.12306185,90.609,90.549,28.74175654]
[1645978034014,0.25,90.608,90.549,28.74175654]
[1645978036022,4.60127104,90.826,90.55,16.5669]
[1645978036023,2.03343215,90.624,90.55,16.5669]
[1645978036223,2.74678921,90.636,90.551,0.25]
[1645978036423,15.86,90.66,90.552,109.4]
[1645978036424,2.22083368,90.66,90.552,109.4]
[1645978036625,2.11084018,90.669,90.554,109.4]
[1645978036823,2.16461034,90.678,90.556,109.4]
[1645978037025,2.16461034,90.678,90.558,109.4]
[1645978037224,2.16461034,90.678,90.557,6.25]
[1645978037225,2.16461034,90.678,90.559,120.064]
[1645978037429,2.16461034,90.678,90.56,6.0]
[1645978037627,2.16461034,90.678,90.571,138.49864818]
[1645978037827,2.16461034,90.678,90.573,109.4]
[1645978038029,2.16461034,90.678,90.575,109.4]
[1645978038231,2.16461034,90.678,90.58,15.86]
[1645978038427,1.89147146,90.699,90.581,10.663]
[1645978038832,0.25,90.698,90.581,13.40978921]
[1645978039032,0.25,90.698,90.582,2.74678921]
[1645978039233,0.25,90.698,90.583,10.663]
[1645978039434,109.4,90.696,90.6,16.5531]
[1645978039632,2.80358176,90.695,90.601,31.51213982]
[1645978039845,109.4,90.679,90.601,31.51213982]
[1645978040047,25.89276305,90.678,90.601,31.51213982]
[1645978040246,2.15905824,90.677,90.601,31.51213982]
[1645978040444,361.12643836,90.666,90.61,16.556]
[1645978040653,0.25,90.665,90.61,16.556]
[1645978040853,2.4111575,90.699,90.611,2.99678921]
[1645978041146,2.17727444,90.704,90.611,2.74678921]
[1645978041644,2.17727444,90.704,90.681,0.90990515]
[1645978041845,25.32417444,90.704,90.681,0.90990515]
[1645978042045,2.58273187,90.703,90.681,0.90990515]
[1645978042345,0.25,90.702,90.681,0.90990515]
[1645978042546,0.25,90.708,90.681,0.90990515]
[1645978043148,0.25,90.708,90.681,0.00990515]
[1645978043350,113.81,90.707,90.681,0.00990515]
[1645978043548,2.21813397,90.706,90.681,0.00990515]
[1645978043751,113.81,90.705,90.681,0.00990515]
[1645978043949,15.86,90.7,90.681,0.00990515]
[1645978044148,2.01874826,90.698,90.681,0.00990515]
[1645978044549,23.1857,90.697,90.681,0.00990515]
[1645978044849,1.89109713,90.696,90.681,0.00990515]
[1645978045048,0.25,90.695,90.681,0.00990515]
[1645978045250,1.89109713,90.696,90.681,0.00990515]
[1645978046548,111.29109713,90.696,90.681,0.00990515]
[1645978046749,2.14547569,90.695,90.681,0.00990515]
[1645978046948,15.86,90.69,90.681,0.00990515]
[1645978047149,2.22003468,90.688,90.681,0.00990515]
[1645978047348,4.41,90.687,90.681,0.00990515]
[1645978047549,4.66,90.687,90.681,0.00990515]
[1645978047849,2.11187754,90.685,90.681,0.00990515]
[1645978048150,4.66,90.684,90.681,0.00990515]
[1645978048452,0.25,90.684,90.681,0.00990515]
[1645978048952,4.66,90.684,90.681,0.00990515]
[1645978049749,109.4,90.682,90.681,0.00990515]
[1645978049948,114.06,90.682,90.681,0.00990515]
[1645978050650,109.65,90.682,90.681,0.00990515]
[1645978050851,0.25,90.682,90.681,0.00990515]
[1645978051055,116.80678921,90.682,90.681,0.00990515]
[1645978051252,136.09480907,90.682,90.681,0.00990515]
[1645978052054,131.68480907,90.682,90.681,0.00990515]
[1645978052655,136.09480907,90.682,90.681,0.00990515]
[1645978054756,116.80678921,90.682,90.681,0.00990515]
[1645978055959,2.07401507,90.679,90.583,23.3404]
[1645978056160,109.4,90.669,90.583,23.3404]
[1645978056362,46.0179,90.668,90.583,23.3404]
[1645978056560,2.28299057,90.667,90.583,23.3404]
[1645978056759,0.25,90.666,90.584,32.53499439]
[1645978057563,251.9014248,90.645,90.584,32.53499439]
[1645978057763,0.25,90.644,90.584,32.53499439]
[1645978060067,0.25,90.644,90.571,2.74678921]
[1645978060068,2.256939,90.644,90.561,25.86498921]
[1645978060266,23.7707,90.643,90.561,23.1182]
[1645978060469,2.5223255,90.642,90.561,39.3545]
[1645978060866,2.5223255,90.642,90.562,2.74678921]
[1645978061065,2.5223255,90.642,90.563,28.44063138]
[1645978061474,2.5223255,90.642,90.57,16.563]
[1645978061868,0.25,90.642,90.57,19.30978921]
[1645978062269,23.7707,90.643,90.57,19.30978921]
[1645978063369,2.76063076,90.642,90.57,19.30978921]
[1645978066575,2.76063076,90.642,90.57,16.563]
[1645978071977,1.92956457,90.658,90.571,2.74678921]
[1645978072178,2.52502129,90.667,90.59,16.5572]
[1645978072387,2.52502129,90.667,90.591,31.17931064]
[1645978072677,2.52502129,90.667,90.591,33.92609985]
[1645978072879,2.52502129,90.667,90.592,2.74678921]
[1645978073479,292.90567453,90.651,90.6,16.5572]
[1645978073700,0.25,90.65,90.6,16.5572]
[1645978077401,0.25,90.65,90.591,47.78891064]
[1645978077402,0.25,90.65,90.591,31.17931064]
[1645978077705,2.47515893,90.65,90.591,31.17931064]
[1645978077901,4.414,90.649,90.591,31.17931064]
[1645978078101,0.25,90.648,90.591,31.17931064]
[1645978078300,0.25,90.648,90.54,15.86]
[1645978078501,109.4,90.639,90.541,24.8285]
[1645978078701,109.4,90.637,90.541,24.8285]
[1645978078902,109.4,90.635,90.541,24.8285]
[1645978079100,109.4,90.633,90.541,24.8285]
[1645978079305,2.26568635,90.628,90.541,24.8285]
[1645978079503,4.415,90.627,90.541,24.8285]
[1645978080003,2.74678921,90.627,90.541,24.8285]
[1645978080406,4.415,90.626,90.538,1.9124932]
[1645978080604,109.4,90.625,90.538,1.9124932]
[1645978080804,385.49071225,90.58,90.538,1.9124932]
[1645978081011,2.08893818,90.579,90.538,1.9124932]
[1645978081604,2.08893818,90.579,90.539,31.08145759]
[1645978081806,0.25,90.578,90.539,31.08145759]
[1645978083204,1.89630262,90.608,90.539,31.08145759]
[1645978084509,0.25,90.607,90.54,16.5688]
[1645978085507,2.74757014,90.607,90.54,16.5688]
[1645978085709,2.74757014,90.607,90.539,31.08145759]
[1645978087411,267.3885992,90.577,90.539,31.08145759]
[1645978087610,0.25,90.576,90.54,16.5688]
[1645978088812,2.49757014,90.607,90.54,16.5688]
[1645978089013,0.25,90.606,90.54,16.5688]
[1645978089411,2.49757014,90.607,90.54,16.5688]
[1645978090818,0.25,90.606,90.54,16.5688]
[1645978091517,278.19139832,90.589,90.54,16.5688]
[1645978091716,278.19139832,90.589,90.539,31.08145759]
[1645978091717,0.25,90.588,90.538,1.9124932]
[1645978091918,2.39665943,90.588,90.538,1.9124932]
[1645978092120,111.79665943,90.588,90.538,1.9124932]
[1645978092317,2.37362752,90.587,90.538,1.9124932]
[1645978092519,0.25,90.586,90.538,1.9124932]
[1645978092717,109.4,90.584,90.491,16.3004]
[1645978092917,90.0,90.585,90.491,16.3004]
[1645978092918,109.4,90.569,90.491,16.3004]
[1645978093117,15.86,90.57,90.491,16.3004]
[1645978093118,109.4,90.567,90.491,16.3004]
[1645978093316,109.4,90.565,90.491,16.3004]
[1645978093517,260.68561577,90.539,90.491,16.3004]
[1645978093716,1.9474536,90.538,90.491,16.3004]
[1645978093917,0.25,90.537,90.491,16.3004]
[1645978094317,0.25,90.537,90.477,31.36319388]
[1645978094518,0.25,90.537,90.487,16.8484]
[1645978096519,2.3127778,90.537,90.487,16.8484]
[1645978098619,2.0627778,90.537,90.487,16.8484]
[1645978100926,2.74678921,90.485,90.388,28.86915725]
[1645978101128,2.74678921,90.485,90.347,0.46740583]
[1645978101129,109.4,90.469,90.389,29.73891532]
[1645978101329,109.4,90.467,90.389,29.73891532]
[1645978101525,109.4,90.465,90.389,29.73891532]
[1645978101824,109.4,90.463,90.389,29.73891532]
[1645978102027,32.463,90.45,90.389,29.73891532]
[1645978102226,32.463,90.45,90.347,0.46740583]
[1645978102227,2.22772238,90.449,90.347,0.46740583]
[1645978102429,50.76022238,90.449,90.347,0.46740583]
[1645978102627,2.18156377,90.448,90.347,3.21419504]
[1645978102828,0.25,90.447,90.347,3.21419504]
[1645978103028,0.25,90.447,90.349,4.33469521]
[1645978103227,0.25,90.447,90.35,34.43957923]
[1645978103428,2.18156377,90.448,90.35,34.43957923]
[1645978103630,6.38647482,90.469,90.351,2.99678921]
[1645978103831,2.37426769,90.479,90.351,2.99678921]
[1645978104028,2.37426769,90.479,90.352,2.74678921]
[1645978104227,2.37426769,90.479,90.353,0.25]
[1645978104628,2.37426769,90.479,90.354,2.74678921]
[1645978104828,2.37426769,90.479,90.38,16.5948]
[1645978105031,2.37426769,90.479,90.382,35.23409218]
[1645978105228,2.37426769,90.479,90.383,0.25]
[1645978105427,2.37426769,90.479,90.384,4.423]
[1645978105628,2.37426769,90.479,90.385,0.25]
[1645978105928,2.07516363,90.496,90.39,16.5927]
[1645978106129,2.07516363,90.496,90.391,4.672]
[1645978106330,2.07516363,90.496,90.391,4.422]
[1645978106529,2.07516363,90.496,90.392,0.25]
[1645978106932,0.25,90.495,90.392,0.25]
[1645978107130,0.25,90.495,90.393,4.422]
[1645978107352,2.07516363,90.496,90.394,0.25]
[1645978107534,2.07516363,90.496,90.41,16.5894]
[1645978107732,2.07516363,90.496,90.411,35.21922411]
[1645978107934,2.07516363,90.496,90.412,4.422]
[1645978108134,24.0796,90.527,90.412,4.422]
[1645978108335,2.50672503,90.526,90.413,2.99678921]
[1645978108536,2.50672503,90.526,90.414,4.421]
[1645978108737,2.50672503,90.526,90.415,0.25]
[1645978108939,2.50672503,90.526,90.416,4.421]
[1645978109136,2.50672503,90.526,90.417,0.25]
[1645978109338,2.50672503,90.526,90.42,15.86]
[1645978109536,219.53719839,90.499,90.421,4.671]
[1645978110838,32.4454,90.55,90.44,16.5842]
[1645978111037,2.3179196,90.549,90.441,30.55750725]
[1645978111239,4.42,90.548,90.441,30.55750725]
[1645978111439,7.16678921,90.548,90.441,30.55750725]
[1645978111644,16.5864,90.54,90.441,30.55750725]
[1645978111843,15.86,90.53,90.441,30.55750725]
[1645978112041,2.30219713,90.529,90.441,30.55750725]
[1645978112240,0.25,90.528,90.441,30.55750725]
[1645978112450,109.4,90.518,90.482,0.47678403]
[1645978112645,109.4,90.509,90.482,0.00678403]
[1645978112841,15.86,90.51,90.39,16.5932]
[1645978112842,109.4,90.507,90.39,16.5932]
[1645978113042,2.44583368,90.506,90.39,16.5932]
[1645978113243,5.19262289,90.506,90.39,16.5932]
[1645978113442,4.672,90.505,90.39,16.5932]
[1645978113647,109.4,90.499,90.391,32.05840807]
[1645978113844,7.24307509,90.498,90.391,32.05840807]
[1645978114041,7.24307509,90.498,90.4,16.5921]
[1645978114242,112.22107509,90.498,90.4,16.5921]
[1645978114443,267.26091945,90.448,90.4,16.5921]
[1645978117563,267.26091945,90.448,90.41,16.5897]
[1645978119466,2.3287317,90.447,90.391,32.05840807]
[1645978121770,2.3287317,90.447,90.418,0.46740583]
[1645978123576,109.4,90.445,90.345,45.8935]
[1645978123773,109.4,90.443,90.31,15.86]
[1645978123984,2.62687063,90.442,90.313,13.23255212]
[1645978124174,111.77049942,90.439,90.313,13.23255212]
[1645978124378,1.98697276,90.436,90.313,13.23255212]
[1645978124573,4.675,90.435,90.333,32.14523612]
[1645978124875,259.65568306,90.387,90.334,6.0]
[1645978125874,259.65568306,90.387,90.335,0.25]
[1645978126272,0.25,90.435,90.34,16.603]
[1645978127675,4.425,90.434,90.34,16.603]
[1645978127877,398.54700232,90.418,90.34,16.603]
[1645978128077,2.58680879,90.417,90.34,16.603]
[1645978129277,1.98216643,90.416,90.34,16.603]
[1645978129477,0.25,90.415,90.34,16.603]
[1645978129678,0.25,90.415,90.334,6.0]
[1645978129880,0.25,90.415,90.333,32.14523612]
[1645978130478,109.65,90.415,90.333,32.14523612]
[1645978130781,2.46752861,90.414,90.333,32.14523612]
[1645978130979,0.25,90.413,90.333,32.14523612]
[1645978132879,2.37820527,90.383,90.333,32.14523612]
[1645978134282,2.37820527,90.383,90.32,16.606]
[1645978134483,198.96078972,90.384,90.272,0.0020326]
[1645978134484,5.77537748,90.325,90.272,0.0020326]
[1645978134683,5.77537748,90.325,90.211,7.0]
[1645978134684,5.6,90.288,90.211,7.0]
[1645978134882,5.6,90.288,90.155,16.4643]
[1645978134883,2.37741707,90.279,90.155,16.4643]
[1645978135081,4.432,90.278,90.155,16.4643]
[1645978135288,2.37741707,90.279,90.211,30.60284247]
[1645978135484,4.432,90.278,90.211,22.60284247]
[1645978135687,2.37741707,90.279,90.211,22.60284247]
[1645978135888,0.25,90.278,90.211,22.60284247]
[1645978136086,0.25,90.286,90.211,22.60284247]
[1645978136285,0.25,90.287,90.211,22.60284247]
[1645978137688,5.6,90.288,90.212,0.25]
[1645978137889,5.77537748,90.325,90.212,109.65]
[1645978138089,5.77537748,90.325,90.212,2.99678921]
[1645978138287,5.77537748,90.325,90.213,2.74678921]
[1645978138490,5.77537748,90.325,90.22,16.6192]
[1645978138688,5.77537748,90.325,90.23,15.86]
[1645978138891,5.77537748,90.325,90.231,0.25]
[1645978139088,5.77537748,90.325,90.232,35.26464213]
[1645978139289,5.77537748,90.325,90.233,0.25]
[1645978139489,5.77537748,90.325,90.234,109.4]
[1645978139688,4.43,90.39,90.236,109.4]
[1645978139893,4.429,90.398,90.252,30.03965382]
[1645978140088,6.67222542,90.398,90.253,0.25]
[1645978140288,6.67222542,90.398,90.26,15.86]
[1645978140490,6.67222542,90.398,90.261,0.25]
[1645978141116,263.82501416,90.356,90.26,15.86]
[1645978141392,2.00086381,90.355,90.281,30.31915423]
[1645978141789,1.96710187,90.389,90.281,30.31915423]
[1645978141992,2.08706778,90.398,90.281,30.31915423]
[1645978142189,1.84,90.489,90.281,30.31915423]
[1645978142190,2.3990464,90.422,90.282,5.0586775]
[1645978142390,2.3990464,90.422,90.29,16.6075]
[1645978142592,2.3990464,90.422,90.3,15.86]
[1645978142891,2.3990464,90.422,90.301,31.59946424]
[1645978143290,2.3990464,90.422,90.31,15.86]
[1645978143490,2.3990464,90.422,90.311,0.25]
[1645978143693,2.3990464,90.422,90.31,15.86]
[1645978143889,6.8250464,90.422,90.311,2.74678921]
[1645978144090,6.8250464,90.422,90.31,15.86]
[1645978144290,24.8638,90.421,90.31,15.86]
[1645978144491,6.66598949,90.42,90.31,15.86]
[1645978144692,2.34322456,90.416,90.311,2.74678921]
[1645978144891,0.25,90.415,90.312,0.25]
[1645978145294,0.25,90.415,90.313,2.74678921]
[1645978145492,0.25,90.415,90.314,0.25]
[1645978145894,2.34322456,90.416,90.316,32.31694028]
[1645978146094,2.34322456,90.416,90.33,15.86]
[1645978146295,2.34322456,90.416,90.331,27.09532231]
[1645978146492,2.34322456,90.416,90.331,29.84211152]
[1645978146893,2.34322456,90.416,90.332,2.74678921]
[1645978147195,2.34322456,90.416,90.332,2.99678921]
[1645978147595,2.34322456,90.416,90.333,2.74678921]
[1645978147895,2.34322456,90.416,90.334,0.25]
[1645978148294,0.25,90.415,90.334,0.25]
[1645978148895,0.25,90.415,90.331,43.38572231]
[1645978148896,0.25,90.415,90.332,0.25]
[1645978150093,0.25,90.415,90.332,109.65]
[1645978150298,0.25,90.415,90.332,0.25]
[1645978150597,0.25,90.415,90.34,16.5993]
[1645978150794,0.25,90.415,90.332,0.25]
[1645978150795,318.6031076,90.417,90.35,13.3]
[1645978150996,318.6031076,90.417,90.361,32.76682851]
[1645978151196,318.6031076,90.417,90.37,13.3]
[1645978151796,318.6031076,90.417,90.37,29.8937]
[1645978151995,318.6031076,90.417,90.371,2.74678921]
[1645978152394,318.6031076,90.417,90.372,6.0]
[1645978152596,318.6031076,90.417,90.405,0.33451006]
[1645978153394,2.32714449,90.481,90.405,0.33451006]
[1645978153595,30.21485496,90.498,90.405,0.33451006]
[1645978153794,1.89469236,90.497,90.405,0.33451006]
[1645978154395,1.89469236,90.497,90.406,2.74678921]
[1645978154596,0.25,90.496,90.406,2.74678921]
[1645978155396,288.13231666,90.466,90.407,0.25]
[1645978155599,288.13231666,90.466,90.41,13.3]
[1645978155798,288.13231666,90.466,90.41,29.8867]
[1645978155999,288.13231666,90.466,90.411,2.74678921]
[1645978156399,288.13231666,90.466,90.405,0.33451006]